fUSD/lending_fUSD_20260111
["ID","MTS","AMOUNT","RATE_DAILY","PERIOD"]
[401389045,1768173047517,-1000.0,0.0001798,2]
[401389046,1768173047527,-496.45188591,0.00017982,2]
[401389047,1768173047537,-500.0,0.00017982,2]
[401389048,1768173047546,-620.17204619,0.0001799,2]
[401389049,1768173047556,-500.0,0.00017993,2]
[401389050,1768173047565,-500.0,0.00017993,2]
[401389051,1768173047575,-500.0,0.00017993,2]
[401389052,1768173047584,-4946.856259,0.00017994,2]
[401389053,1768173047594,-300.0,0.00017998,2]
[401389054,1768173047604,-673.04563665,0.00017998,2]
[401389055,1768173047613,-500.0,0.00017999,2]
[401389056,1768173047623,-500.0,0.00017999,2]
[401389057,1768173047632,-385.19485387,0.00017999,2]
[401389058,1768173047642,-300.0,0.00017999,2]
[401389059,1768173047652,-300.0,0.00017999,2]
[401389060,1768173047661,-300.0,0.00017999,2]
[401389061,1768173047671,-150.0,0.00018,2]
[401389062,1768173047681,-150.0,0.00018,2]
[401389063,1768173047691,-150.0,0.00018,2]
[401389064,1768173047700,-150.0,0.00018,2]
[401389065,1768173047710,-150.0,0.00018,2]
[401389066,1768173047719,-150.0,0.00018,2]
[401389067,1768173047729,-150.0,0.00018,2]
[401389068,1768173047739,-150.00000001,0.00018,2]
[401389069,1768173047748,-150.4343184,0.00018,2]
[401389070,1768173047758,-150.37867968,0.00018,2]
[401389071,1768173047767,-178.176763,0.00018,2]
[401389072,1768173047778,-150.0,0.00018,2]
[401389073,1768173047788,-150.0,0.00018,2]
[401389074,1768173047798,-496.45188591,0.00018,2]
[401389075,1768173047808,-1782084.62033042,0.00018,2]
[401389076,1768173047818,-381880.16716062,0.00018,2]
[401389077,1768173048388,-51198.60562156,0.00018,2]
[401389078,1768173048400,-1085.72359549,0.00018,2]
[401389079,1768173048413,-13441.71464927,0.00018,2]
[401389080,1768173048425,-8567.68070531,0.00018,2]
[401389081,1768173048437,-437888.0,0.00018,2]
[401389082,1768173048449,-38683.1044579,0.00018,2]
[401389083,1768173048487,-151.0,0.00017525,2]
[401389084,1768173048496,-623.89493614,0.00018,2]
[401389085,1768173048508,-1134.21112236,0.00018,2]
[401389086,1768173049203,-580.33919918,0.00014942,2]
[401389087,1768173049398,-520.66080082,0.00014942,2]
[401389088,1768173049407,-180.24,0.00016525,2]
[401389089,1768173049417,-90.17205333,0.00017341,2]
[401389090,1768173049428,-1010.82794667,0.00017341,2]
[401389091,1768173049437,-1115.641433,0.00017525,2]
[401389092,1768173049447,-520.868742,0.00017525,2]
[401389093,1768173049456,-1115.641433,0.00017525,2]
[401389094,1768173049466,-520.868742,0.00017525,2]
[401389095,1768173049475,-1115.641433,0.00017525,2]
[401389096,1768173049485,-520.868742,0.00017525,2]
[401389097,1768173049495,-566.0,0.00017568,2]
[401389098,1768173049504,-151.0,0.00017808,2]
[401389099,1768173049514,-151.0,0.00017882,2]
[401389100,1768173049523,-1115.641433,0.00017882,2]
[401389101,1768173049533,-520.868742,0.00017882,2]
[401389102,1768173049543,-486.92545946,0.00017882,2]
[401389103,1768173049579,-628.71597354,0.00017882,2]
[401389104,1768173049589,-334.62824305,0.00017882,2]
[401389105,1768173049601,-186.24049895,0.00017882,2]
[401389106,1768173049611,-1115.641433,0.00017882,2]
[401389107,1768173049620,-151.0,0.00017882,2]
[401389108,1768173049630,-137.54040955,0.00017882,2]
[401389109,1768173049645,-383.32833245,0.00017882,2]
[401389110,1768173049654,-2892.52026055,0.00018,2]
[401389111,1768173049666,-373.96952708,0.00018,2]
[401389112,1768173049677,-26896.15235756,0.00018,2]
[401389113,1768173049688,-4302.89348897,0.00018,2]
[401389114,1768173049710,-508.33361659,0.00018,2]
[401389115,1768173049723,-2486.13672743,0.00018,2]
[401389116,1768173049734,-616.0,0.00018,2]
[401389117,1768173049745,-2061.59921,0.00018,2]
[401389118,1768173049792,-1101.0,0.00014195,2]
[401389119,1768173049801,-164.1623047,0.00017883,2]
[401389120,1768173049811,-164.1623047,0.000179,2]
[401389121,1768173049820,-194112.81436405,0.00018,2]
[401389122,1768173049832,-301.1,0.00018,2]
[401389123,1768173049844,-187532.11431006,0.00018,2]
[401389124,1768173049856,-2365.08758627,0.00018,2]
[401389125,1768173049868,-36078.82933429,0.00018,2]
[401389126,1768173049880,-1599.7566905,0.00018,2]
[401389127,1768173049890,-15268.48926332,0.00018,2]
[401389128,1768173049902,-500.0,0.00018,2]
[401389129,1768173049917,-345.7829875,0.00018,2]
[401389130,1768173049927,-1620.7380464,0.00018,2]
[401389131,1768173049939,-5521.0,0.00018,2]
[401389132,1768173049950,-453.03,0.00018,2]
[401389133,1768173051197,1101.0,0.00013485,2]
[401389134,1768173056214,1101.0,0.00013457,2]
[401389135,1768173060963,1101.0,0.00013457,2]
[401389136,1768173068022,1976.450204,7.945e-05,2]
[401389137,1768173071072,4720.559796,0.00013579,2]
[401389138,1768173071108,10000.01,0.00013579,2]
[401389139,1768173136486,700.0,0.000139,5]
[401389140,1768173143512,-1639.15294399,0.00013578,2]
[401389141,1768173143545,-150.0,0.00013578,2]
[401389142,1768173145727,1693.4990695,0.00013479,2]
[401389143,1768173153787,1167.66845712,0.00013578,3]
[401389144,1768173170525,700.0,0.000139,5]
[401389145,1768173178293,325.57272217,0.00013479,2]
[401389146,1768173179046,1208.97923331,0.00013479,2]
[401389147,1768173182587,222.18749106,0.00013479,2]
[401389148,1768173195797,1200.0,0.00013578,2]
[401389149,1768173205384,223.63139578,0.00013479,2]
[401389150,1768173245439,1547.8342002,0.00013479,2]
[401389151,1768173245462,2561.5969998,0.00013479,2]
[401389152,1768173293318,7438.4130002,0.00013569,2]
[401389153,1768173293344,10000.01,0.00013569,2]
[401389154,1768173293370,1854.28019831,0.00013569,2]
[401389155,1768173301222,1200.0,0.00013578,2]
[401389156,1768173301262,241.0,0.00013578,2]
[401389157,1768173301715,300.0,0.00013578,2]
[401389158,1768173302566,150.0,0.00013578,2]
[401389159,1768173323813,805.98615554,0.00013479,2]
[401389161,1768173340273,500.0,0.00013578,2]
[401389162,1768173340553,174.43846821,0.00013578,2]
[401389163,1768173340922,237.82344008,0.00013578,2]
[401389164,1768173340980,179.18866502,0.00013578,2]
[401389165,1768173341255,404.32125126,0.00013578,2]
[401389166,1768173343878,542.77065189,0.00013578,2]
[401389167,1768173343913,500.0,0.00013578,2]
[401389168,1768173343949,294.98285029,0.00013578,2]
[401389169,1768173343992,577.8298864,0.00013578,2]
[401389170,1768173344034,577.8298864,0.00013578,2]
[401389171,1768173344071,187.44697681,0.00013578,2]
[401389172,1768173344118,577.8298864,0.00013578,2]
[401389173,1768173344165,577.8298864,0.00013578,2]
[401389174,1768173344212,577.8298864,0.00013578,2]
[401389175,1768173344267,577.8298864,0.00013578,2]
[401389176,1768173344313,577.8298864,0.00013578,2]
[401389177,1768173344358,577.8298864,0.00013578,2]
[401389178,1768173344411,577.8298864,0.00013578,2]
[401389179,1768173344459,577.8298864,0.00013578,2]
[401389180,1768173344508,394.7526769,0.00013578,2]
[401389181,1768173344541,183.0772095,0.00013578,2]
[401389182,1768173344588,577.8298864,0.00013578,2]
[401389183,1768173344642,577.8298864,0.00013578,2]
[401389184,1768173344689,577.8298864,0.00013578,2]
[401389185,1768173344738,577.8298864,0.00013578,2]
[401389186,1768173344787,577.8298864,0.00013578,2]
[401389187,1768173344832,577.8298864,0.00013578,2]
[401389188,1768173344881,577.8298864,0.00013578,2]
[401389189,1768173344928,577.8298864,0.00013578,2]
[401389190,1768173344976,577.8298864,0.00013578,2]
[401389191,1768173345349,577.8298864,0.00013578,2]
[401389192,1768173345423,577.8298864,0.00013578,2]
[401389193,1768173345472,577.8298864,0.00013578,2]
[401389194,1768173345519,577.8298864,0.00013578,2]
[401389195,1768173345585,577.8298864,0.00013578,2]
[401389196,1768173345632,577.8298864,0.00013578,2]
[401389197,1768173345685,577.8298864,0.00013578,2]
[401389198,1768173345731,571.6546081,0.00013578,2]
[401389199,1768173345759,6.1752783,0.00013578,2]
[401389200,1768173345804,577.8298864,0.00013578,2]
[401389201,1768173345847,577.8298864,0.00013578,2]
[401389202,1768173345905,577.8298864,0.00013578,2]
[401389203,1768173345950,577.8298864,0.00013578,2]
[401389204,1768173346078,577.8298864,0.00013578,2]
[401389205,1768173346139,577.8298864,0.00013578,2]
[401389206,1768173346190,577.8298864,0.00013578,2]
[401389207,1768173346238,577.8298864,0.00013578,2]
[401389208,1768173346285,577.8298864,0.00013578,2]
[401389209,1768173346363,577.8298864,0.00013578,2]
[401389210,1768173346414,577.8298864,0.00013578,2]
[401389211,1768173346462,577.8298864,0.00013578,2]
[401389212,1768173346521,577.8298864,0.00013578,2]
[401389213,1768173346570,577.8298864,0.00013578,2]
[401389214,1768173346621,577.8298864,0.00013578,2]
[401389215,1768173346688,577.8298864,0.00013578,2]
[401389216,1768173346733,577.8298864,0.00013578,2]
[401389217,1768173346787,170.7266529,0.00013578,2]
[401389218,1768173346818,407.1032335,0.00013578,2]
[401389219,1768173346880,577.8298864,0.00013578,2]
[401389220,1768173346933,577.8298864,0.00013578,2]
[401389221,1768173346985,577.8298864,0.00013578,2]
[401389222,1768173347039,577.8298864,0.00013578,2]
[401389223,1768173347094,577.8298864,0.00013578,2]
[401389224,1768173347204,577.8298864,0.00013578,2]
[401389225,1768173359197,277.07065188,0.00013479,2]
[401389226,1768173364519,171.0,7.5e-07,2]
[401389227,1768173364606,626.56252742,0.00013578,2]
[401389228,1768173364663,626.56252742,0.00013578,2]
[401389229,1768173364709,626.56252742,0.00013578,2]
[401389230,1768173364756,626.56252742,0.00013578,2]
[401389231,1768173364813,626.56252742,0.00013578,2]
[401389232,1768173364857,626.56252742,0.00013578,2]
[401389233,1768173364906,626.56252742,0.00013578,2]
[401389234,1768173364953,626.56252742,0.00013578,2]
[401389235,1768173364997,626.56252742,0.00013578,2]
[401389236,1768173365051,38.79404944,0.00013578,2]
[401389237,1768173365083,587.76847798,0.00013578,2]
[401389238,1768173365141,626.56252742,0.00013578,2]
[401389239,1768173365186,626.56252742,0.00013578,2]
[401389240,1768173365237,626.56252742,0.00013578,2]
[401389241,1768173365280,626.56252742,0.00013578,2]
[401389242,1768173365333,626.56252742,0.00013578,2]
[401389243,1768173365393,626.56252742,0.00013578,2]
[401389244,1768173365442,626.56252742,0.00013578,2]
[401389245,1768173365851,626.56252742,0.00013578,2]
[401389246,1768173365899,626.56252742,0.00013578,2]
[401389247,1768173365948,626.56252742,0.00013578,2]
[401389248,1768173365990,626.56252742,0.00013578,2]
[401389249,1768173366037,626.56252742,0.00013578,2]
[401389250,1768173366088,626.56252742,0.00013578,2]
[401389251,1768173366134,626.56252742,0.00013578,2]
[401389252,1768173366173,277.07065188,0.00013479,2]
[401389253,1768173366218,363.29548626,0.00013578,2]
[401389254,1768173366248,263.26704116,0.00013578,2]
[401389255,1768173366292,626.56252742,0.00013578,2]
[401389256,1768173366339,626.56252742,0.00013578,2]
[401389257,1768173366378,626.56252742,0.00013578,2]
[401389258,1768173366422,626.56252742,0.00013578,2]
[401389259,1768173366485,626.56252742,0.00013578,2]
[401389260,1768173366542,626.56252742,0.00013578,2]
[401389261,1768173366584,626.56252742,0.00013578,2]
[401389262,1768173366626,626.56252742,0.00013578,2]
[401389263,1768173366672,626.56252742,0.00013578,2]
[401389264,1768173366723,626.56252742,0.00013578,2]
[401389265,1768173366767,626.56252742,0.00013578,2]
[401389266,1768173366813,626.56252742,0.00013578,2]
[401389267,1768173366855,626.56252742,0.00013578,2]
[401389268,1768173366896,626.56252742,0.00013578,2]
[401389269,1768173369805,1743.3,0.00013579,2]
[401389270,1768173425120,200.0,0.00013571,2]
[401389271,1768173425216,200.0,0.00013571,2]
[401389272,1768173425255,500.0,0.00013571,2]
[401389273,1768173426538,373.59971564,0.00013571,2]
[401389274,1768173430169,151.0,0.00013571,2]
[401389275,1768173430851,151.0,0.00013571,2]
[401389276,1768173431481,151.0,0.00013571,2]
[401389277,1768173432438,151.0,0.00013571,2]
[401389278,1768173432670,151.0,0.00013571,2]
[401389279,1768173433313,151.0,0.00013571,2]
[401389280,1768173433971,151.0,0.00013571,2]
[401389281,1768173434053,500.0,0.00013571,2]
[401389282,1768173434617,151.0,0.00013571,2]
[401389283,1768173434670,500.0,0.00013571,2]
[401389284,1768173435247,151.0,0.00013571,2]
[401389285,1768173435288,500.0,0.00013571,2]
[401389286,1768173435890,500.0,0.00013571,2]
[401389287,1768173435929,151.0,0.00013571,2]
[401389288,1768173436541,151.0,0.00013571,2]
[401389289,1768173437143,151.0,0.00013571,2]
[401389290,1768173437752,151.0,0.00013571,2]
[401389291,1768173438352,356.67288245,0.00013571,2]
[401389292,1768173438391,151.0,0.00013571,2]
[401389293,1768173438972,151.0,0.00013571,2]
[401389294,1768173439787,151.0,0.00013571,2]
[401389295,1768173440601,151.0,0.00013571,2]
[401389296,1768173440860,151.0,0.00013571,2]
[401389297,1768173441275,-255.60362038,0.00013579,2]
[401389298,1768173441471,151.0,0.00013571,2]
[401389299,1768173442623,500.0,0.00013571,2]
[401389300,1768173443274,500.0,0.00013571,2]
[401389301,1768173443469,-197.30505796,0.00013579,2]
[401389302,1768173443676,151.0,0.00013571,2]
[401389303,1768173443942,500.0,0.00013571,2]
[401389304,1768173444542,106.43740191,0.00013571,2]
[401389305,1768173444567,393.56259809,0.00013571,2]
[401389306,1768173444961,200.0,0.00013571,2]
[401389307,1768173445158,500.0,0.00013571,2]
[401389308,1768173445772,500.0,0.00013571,2]
[401389309,1768173446205,169.59396551,0.00013571,2]
[401389310,1768173446427,500.0,0.00013571,2]
[401389311,1768173446510,-402.69494204,0.00013579,2]
[401389312,1768173447098,500.0,0.00013571,2]
[401389313,1768173447759,500.0,0.00013571,2]
[401389314,1768173448389,500.0,0.00013571,2]
[401389315,1768173449003,205.67940434,0.00013571,2]
[401389316,1768173450871,325.05764376,0.00013578,2]
[401389317,1768173450916,-317.8739,0.00013579,2]
[401389318,1768173452225,151.0,0.00013571,2]
[401389319,1768173452828,151.0,0.00013571,2]
[401389320,1768173453480,151.0,0.00013571,2]
[401389321,1768173454111,151.0,0.00013571,2]
[401389322,1768173454736,151.0,0.00013571,2]
[401389323,1768173455370,151.0,0.00013571,2]
[401389324,1768173456009,151.0,0.00013571,2]
[401389325,1768173456649,151.0,0.00013571,2]
[401389326,1768173457268,151.0,0.00013571,2]
[401389327,1768173457878,151.0,0.00013571,2]
[401389328,1768173458510,151.0,0.00013571,2]
[401389329,1768173459143,151.0,0.00013571,2]
[401389330,1768173459779,151.0,0.00013571,2]
[401389331,1768173467176,537.32410368,0.00013479,2]
[401389332,1768173472472,3205.79228462,0.00013479,2]
[401389333,1768173472499,1588.20771538,0.00013479,2]
[401389334,1768173479795,317.8739,0.00013479,2]
[401389335,1768173481418,300.0,0.00013578,2]
[401389336,1768173483056,300.0,0.00013578,2]
[401389337,1768173483093,150.0,0.00013578,2]
[401389338,1768173488392,163.87946355,0.00013578,2]
[401389339,1768173496415,1200.0,0.00013578,2]
[401389340,1768173500513,2968.17536146,0.00013479,2]
[401389341,1768173512185,207.80298891,0.00013479,2]
[401389342,1768173516595,-192.34196044,0.00013579,2]
[401389343,1768173520649,-305.0,0.00013579,2]
[401389344,1768173521743,207.80298891,0.00013479,2]
[401389345,1768173541264,300.0,0.00013578,2]
[401389346,1768173587817,2296.26758179,0.00013308,2]
[401389347,1768173587840,1697.00741821,0.00013308,2]
[401389348,1768173587877,256.052,0.00013308,2]
[401389349,1768173601151,300.0,0.00013578,2]
[401389350,1768173601430,1200.0,0.00013578,2]
[401389351,1768173603528,262.0,0.00013579,2]
[401389352,1768173605642,-265.0,0.00013579,2]
[401389353,1768173607188,-197.50412168,0.00013579,2]
[401389354,1768173607649,358.21606912,0.00013529,2]
[401389355,1768173608657,-268.97657972,0.00013579,2]
[401389356,1768173629282,497.3419,0.00013479,2]
[401389357,1768173656458,5429.39261267,0.00013529,2]
[401389358,1768173656484,687.29610234,0.00013529,2]
[401389359,1768173661206,300.0,0.00013578,2]
[401389360,1768173662432,155.8522417,0.00013529,2]
[401389361,1768173662492,150.0,0.00013578,2]
[401389362,1768173665941,166.47640805,0.00013578,2]
[401389363,1768173672862,303.92679243,0.00013578,2]
[401389364,1768173677806,8236.45845548,0.00013529,2]
[401389365,1768173677830,727.49662706,0.00013529,2]
[401389366,1768173678016,155.8522417,0.00013529,2]
[401389367,1768173681074,500.0,0.00013578,2]
[401389368,1768173681123,500.0,0.00013578,2]
[401389369,1768173681181,500.0,0.00013578,2]
[401389370,1768173681226,500.0,0.00013578,2]
[401389371,1768173681268,500.0,0.00013578,2]
[401389372,1768173681315,500.0,0.00013578,2]
[401389373,1768173681369,500.0,0.00013578,2]
[401389374,1768173681417,500.0,0.00013578,2]
[401389375,1768173681466,500.0,0.00013578,2]
[401389376,1768173681516,500.0,0.00013578,2]
[401389377,1768173681555,500.0,0.00013578,2]
[401389378,1768173681594,500.0,0.00013578,2]
[401389379,1768173681647,627.35450047,0.00013578,2]
[401389380,1768173681695,500.0,0.00013578,2]
[401389381,1768173682184,500.0,0.00013578,2]
[401389382,1768173684100,1489.30663077,0.00013479,2]
[401389383,1768173684123,1441.55546923,0.00013479,2]
[401389384,1768173695745,712.444275,0.00012899,2]
[401389385,1768173711126,-258.83768649,0.00013579,2]
[401389386,1768173715459,-161.61997633,0.00013579,2]
[401389387,1768173716407,633.02487588,0.00013578,2]
[401389388,1768173718318,-286.8253373,0.00013579,2]
[401389389,1768173721001,-298.73258183,0.00013579,2]
[401389390,1768173723088,-248.05759627,0.00013579,2]
[401389391,1768173725930,151.0,0.00013571,2]
[401389392,1768173726706,151.0,0.00013571,2]
[401389393,1768173727323,151.0,0.00013571,2]
[401389394,1768173727930,151.0,0.00013571,2]
[401389395,1768173728564,151.0,0.00013571,2]
[401389396,1768173729170,151.0,0.00013571,2]
[401389397,1768173729781,151.0,0.00013571,2]
[401389398,1768173730594,151.0,0.00013571,2]
[401389399,1768173731712,151.0,0.00013571,2]
[401389400,1768173732632,151.0,0.00013571,2]
[401389401,1768173732673,500.0,0.00013571,2]
[401389402,1768173732852,151.0,0.00013571,2]
[401389403,1768173733095,151.0,0.00013571,2]
[401389404,1768173733665,151.0,0.00013571,2]
[401389405,1768173734292,151.0,0.00013571,2]
[401389406,1768173734859,200.0,0.00013571,2]
[401389407,1768173734916,151.0,0.00013571,2]
[401389408,1768173735554,151.0,0.00013571,2]
[401389409,1768173736171,151.0,0.00013571,2]
[401389410,1768173736776,151.0,0.00013571,2]
[401389411,1768173737405,151.0,0.00013571,2]
[401389412,1768173738020,151.0,0.00013571,2]
[401389413,1768173741123,202.27919226,0.00013571,2]
[401389414,1768173741307,200.0,0.00013571,2]
[401389415,1768173751357,151.0,0.00013571,2]
[401389416,1768173751958,151.0,0.00013571,2]
[401389417,1768173753332,151.0,0.00013571,2]
[401389418,1768173753438,151.0,0.00013571,2]
[401389419,1768173753839,151.0,0.00013571,2]
[401389420,1768173754454,151.0,0.00013571,2]
[401389421,1768173755081,151.0,0.00013571,2]
[401389422,1768173755681,151.0,0.00013571,2]
[401389423,1768173756048,-297.33914041,0.00013579,2]
[401389424,1768173756325,151.0,0.00013571,2]
[401389425,1768173756918,151.0,0.00013571,2]
[401389426,1768173757540,151.0,0.00013571,2]
[401389427,1768173758545,151.0,0.00013571,2]
[401389428,1768173786099,-195.0,0.00013579,2]
[401389429,1768173789753,-245.30934677,0.00013579,2]
[401389430,1768173796085,295.0,0.00013578,2]
[401389431,1768173822659,155.85224163,0.00013498,2]
[401389432,1768173832391,155.85224163,0.00013498,2]
[401389433,1768173840439,245.309347,0.00013511,2]
[401389434,1768173841199,300.0,0.00013578,2]
[401389435,1768173855741,126.69235737,0.00012823,2]
[401389436,1768173855763,2468.44800063,0.00012823,2]
[401389437,1768173887977,2671.35782535,0.00013539,2]
[401389438,1768173891102,-162.0570813,0.00013579,2]
[401389439,1768173893469,238.81071276,0.00013539,2]
[401389440,1768173896150,1192.415367,0.00012182,2]
[401389441,1768173901171,300.0,0.00013578,2]
[401389442,1768173901269,1200.0,0.00013578,2]
[401389443,1768173920630,-163.21,0.00013579,2]
[401389444,1768173923185,500.0,0.00013578,2]
[401389445,1768173925430,162.057081,0.00013511,2]
[401389446,1768173937777,163.21,0.00013511,2]
[401389447,1768173952187,-385.99815781,0.00013579,2]
[401389448,1768173958204,1103.71101326,8e-05,2]
[401389449,1768173958228,5945.88346671,8e-05,2]
[401389450,1768173962149,4054.12653329,0.00011,2]
[401389451,1768173962175,5361.34139392,0.00011,2]
[401389452,1768173969922,155.85224163,0.00013539,2]
[401389453,1768173982962,155.85224163,0.00013539,2]
[401389454,1768173983065,9844.15775837,0.00013479,2]
[401389455,1768173983090,5211.84164163,0.00013479,2]
[401389456,1768174013336,385.998158,0.00013511,2]
[401389457,1768174028679,1300.0,0.000139,5]
[401389458,1768174030140,-301.39934339,0.00013579,2]
[401389459,1768174037082,-833.38960871,0.00013579,2]
[401389460,1768174037539,159.20714184,0.00013539,2]
[401389461,1768174041162,500.0,0.00013578,2]
[401389462,1768174041242,500.0,0.00013578,2]
[401389463,1768174041297,500.0,0.00013578,2]
[401389464,1768174041365,612.73545005,0.00013578,2]
[401389465,1768174051083,500.0,0.00013578,2]
[401389466,1768174059536,1630.22760848,0.00013,2]
[401389467,1768174059559,2792.64148038,0.00013,2]
[401389468,1768174064100,5941.68204928,0.00012,2]
[401389469,1768174080546,500.0,0.00013578,2]
[401389470,1768174081302,300.0,0.00013578,2]
[401389472,1768174103089,155.85224163,0.00013509,2]
[401389473,1768174104817,309.83422871,0.00013479,2]
[401389474,1768174104846,10000.01,0.00013479,2]
[401389475,1768174104876,10000.01,0.00013479,2]
[401389476,1768174104904,10000.01,0.00013479,2]
[401389477,1768174104932,10000.01,0.00013479,2]
[401389478,1768174104961,10000.01,0.00013479,2]
[401389479,1768174104990,10000.01,0.00013479,2]
[401389480,1768174105020,10000.01,0.00013479,2]
[401389481,1768174105050,10000.01,0.00013479,2]
[401389482,1768174105080,10000.01,0.00013479,2]
[401389483,1768174105513,-275.0,0.00013479,2]
[401389484,1768174107441,-195.0,0.00013479,2]
[401389485,1768174108877,-179.13660126,0.00013479,2]
[401389486,1768174110452,-449.4769934,0.00013479,2]
[401389487,1768174113066,-293.92349696,0.00013479,2]
[401389488,1768174115356,-284.67298197,0.00013479,2]
[401389489,1768174119935,-152.24156188,0.00013478,2]
[401389490,1768174120120,-388.86465687,0.00013478,2]
[401389491,1768174126088,-302.38711266,0.00013479,2]
[401389492,1768174127586,-166.66,0.00013479,2]
[401389493,1768174129186,-261.88660126,0.00013479,2]
[401389494,1768174131128,-250.0,0.00013479,2]
[401389495,1768174134977,-166.66,0.00013479,2]
[401389496,1768174137169,-168.55203038,0.00013479,2]
[401389497,1768174140633,-168.83564335,0.00013479,2]
[401389498,1768174142791,-166.66,0.00013479,2]
[401389499,1768174144286,-231.83004513,0.00013479,2]
[401389500,1768174145627,-626.48993726,0.00013479,2]
[401389501,1768174149490,-158.38171169,0.00013479,2]
[401389502,1768174151814,-323.89022694,0.00013479,2]
[401389503,1768174154087,-1051.29514912,0.00013479,2]
[401389504,1768174158683,-214.65359386,0.00013412,2]
[401389505,1768174159085,-306.14820414,0.00013412,2]
[401389506,1768174159113,-2735.47768414,0.00013479,2]
[401389507,1768174162486,-152.90274,0.00013479,2]
[401389508,1768174165826,-239.62801053,0.00013479,2]
[401389509,1768174167050,-23422.15083085,0.00013479,2]
[401389510,1768174167518,-327.02019234,0.00013479,2]
[401389511,1768174173527,-565.80111167,0.00013479,2]
[401389512,1768174176795,-349.72397866,0.00013479,2]
[401389514,1768174181816,-159.20714182,0.00013409,2]
[401389515,1768174181844,-168.82690202,0.00013479,2]
[401389518,1768174184481,-413.62305256,0.00013479,2]
[401389519,1768174185898,-283.69046384,0.00013479,2]
[401389520,1768174189930,-216.04641813,0.00013479,2]
[401389521,1768174195302,-397.82381289,0.00013479,2]
[401389522,1768174197978,-458.68832832,0.00013479,2]
[401389523,1768174200900,-4525.88536588,0.00013479,2]
[401389524,1768174201248,-267.17649534,0.00013478,2]
[401389525,1768174207159,-335.98824633,0.00013478,2]
[401389526,1768174208739,-173.41473106,0.00013478,2]
[401389527,1768174214524,-301.0211071,0.00013478,2]
[401389528,1768174215950,-122.39942017,0.00013478,2]
[401389529,1768174215980,-261.0,0.00013478,2]
[401389530,1768174216041,-9233.21115966,0.00013479,2]
[401389531,1768174216086,-10000.01,0.00013479,2]
[401389532,1768174216285,-10000.01,0.00013479,2]
[401389533,1768174216409,-10000.01,0.00013479,2]
[401389534,1768174216538,-10000.01,0.00013479,2]
[401389535,1768174216673,-10000.01,0.00013479,2]
[401389536,1768174228950,-10000.01,0.00013479,2]
[401389537,1768174229077,-10000.01,0.00013479,2]
[401389538,1768174229191,-10000.01,0.00013479,2]
[401389557,1768174232331,-72736.44100093,0.00013479,2]
[401389558,1768174232392,-122282.80722799,0.00013479,2]
[401389559,1768174232403,-35395.1452552,0.00013479,2]
[401389560,1768174232414,-57325.66771199,0.00013479,2]
[401389561,1768174232425,-250556.74308979,0.00013479,2]
[401389562,1768174232435,-1254.41808677,0.00013479,2]
[401389636,1768174238341,-2978.91,0.00013479,2]
[401389637,1768174238353,-4141.776292,0.00013479,2]
[401389638,1768174238364,-4815.271,0.00013479,2]
[401389639,1768174238375,-7294.76997,0.00013479,2]
[401389640,1768174238387,-5699.00000005,0.00013479,2]